[Event "-chT Youth Countries 2019"]
[Site "Wuerzburg"]
[Date "2019.10.04"]
[Round "4.4"]
[White "Ravina, David"]
[Black "Muller, Magnus"]
[Result "1/2-1/2"]
[ECO "B30"]
[WhiteElo "2087"]
[BlackElo "1478"]
[Annotator "NA"]
[PlyCount "67"]
[EventDate "2019.10.02"]
[EventType "team-tourn"]
[EventRounds "7"]
[EventCountry "GER"]
[SourceTitle "playchess.com"]
[Source "ChessBase"]
[SourceQuality "1"]
[WhiteTeam "Hamburg/Schleswig-Holstein"]
[BlackTeam "Thüringen"]
[TimeControl "40/5400+30:1800+30"]

1. e4 {[%emt 0:00:00]} c5 {[%emt 0:00:00]} 2. Nf3 {[%emt 0:00:56]} Nc6 {[%emt 0:00:00]} 3. Bb5 {[%emt 0:00:21]} d6 {[%emt 0:00:38]} 4. Bxc6+ {[%emt 0:00:16]} bxc6 {[%emt 0:00:06]} 5. d3 {[%emt 0:04:15]} e5 {[%emt 0:10:38]} 6. O-O {[%emt 0:02:59]} Be7 {[%emt 0:01:00]} 7. Nbd2 {[%emt 0:00:32]} f5 {[%emt 0:08:07]} 8. exf5 {[%emt 0:00:37]} Bxf5 {[%emt 0:00:11]} 9. Ne4 {[%emt 0:00:24]} Nf6 {[%emt 0:01:07]} 10. Ng3 {[%emt 0:01:03]} Bg4 {[%emt 0:15:47]} 11. h3 {[%emt 0:08:46]} Bd7 {[%emt 0:00:28]} 12. Nh4 {[%emt 0:19:27]} O-O {[%emt 0:01:56]} 13. Nhf5 {[%emt 0:01:46]} Nd5 {[%emt 0:02:25]} 14. Qg4 {[%emt 0:04:53]} g6 {[%emt 0:02:22]} 15. Nxe7+ {[%emt 0:00:34]} Qxe7 {[%emt 0:00:55]} 16. Qg5 {[%emt 0:00:43]} Qe6 {[%emt 0:13:29]} 17. Bd2 {[%emt 0:11:37]} Rab8 {[%emt 0:02:34]} 18. b3 {[%emt 0:00:25]} Nf4 {[%emt 0:04:02]} 19. Rae1 {[%emt 0:02:20]} Qd5 {[%emt 0:03:51]} 20. Bxf4 {[%emt 0:01:27]} Rxf4 {[%emt 0:00:29]} 21. Nh5 {[%emt 0:00:17]} Rf5 {[%emt 0:01:10]} 22. Nf6+ {[%emt 0:00:07]} Kf7 {[%emt 0:00:29]} 23. Qxf5 {[%emt 0:00:09]} gxf5 {[%emt 0:00:12]} 24. Nxd5 {[%emt 0:00:08]} cxd5 {[%emt 0:00:05]} 25. f4 {[%emt 0:01:44]} Kf6 {[%emt 0:00:52]} 26. Kf2 {[%emt 0:05:17]} Rg8 {[%emt 0:01:37]} 27. Re3 {[%emt 0:10:09]} Bc6 {[%emt 0:04:40]} 28. Rfe1 {[%emt 0:07:11]} Re8 {[%emt 0:03:45]} 29. g4 {[%emt 0:03:43]} e4 {[%emt 0:03:41]} 30. Kg3 {[%emt 0:06:09]} d4 {[%emt 0:01:40]} 31. R3e2 {[%emt 0:00:12]} e3 {[%emt 0:00:09]} 32. a3 {[%emt 0:01:34]} a5 {[%emt 0:02:38]} 33. g5+ {[%emt 0:03:01]} Kg6 {[%emt 0:01:12]} 34. h4 {normal} 1/2-1/2

[Event "-chT Youth Countries 2019"]
[Site "Wuerzburg"]
[Date "2019.10.04"]
[Round "4.4"]
[White "Gutkin, Ilya"]
[Black "Hommer, Jeremy"]
[Result "0-1"]
[ECO "A04"]
[WhiteElo "2047"]
[BlackElo "2133"]
[Annotator "NA"]
[PlyCount "94"]
[EventDate "2019.10.02"]
[EventType "team-tourn"]
[EventRounds "7"]
[EventCountry "GER"]
[SourceTitle "playchess.com"]
[Source "ChessBase"]
[SourceQuality "1"]
[WhiteTeam "Nordrhein-Westfalen"]
[BlackTeam "Niedersachsen"]
[TimeControl "40/5400+30:1800+30"]

1. Nf3 {[%emt 0:00:00]} e6 {[%emt 0:00:00]} 2. c4 {[%emt 0:00:00]} b6 {[%emt 0:00:26]} 3. g3 {[%emt 0:00:02]} Bb7 {[%emt 0:00:21]} 4. Bg2 {[%emt 0:00:10]} c5 {[%emt 0:00:21]} 5. O-O {[%emt 0:01:49]} Nf6 {[%emt 0:01:09]} 6. b3 {[%emt 0:03:05]} Be7 {[%emt 0:01:54]} 7. Bb2 {[%emt 0:00:17]} d6 {[%emt 0:07:28]} 8. d4 {[%emt 0:02:14]} cxd4 {[%emt 0:00:33]} 9. Qxd4 {[%emt 0:05:06]} Nbd7 {[%emt 0:02:33]} 10. Nc3 {[%emt 0:01:06]} a6 {[%emt 0:00:07]} 11. Rfd1 {[%emt 0:06:54]} O-O {[%emt 0:02:39]} 12. Ng5 {[%emt 0:11:56]} Bxg2 {[%emt 0:09:56]} 13. Kxg2 {[%emt 0:00:49]} Qc7 {[%emt 0:10:02]} 14. Nge4 {[%emt 0:11:16]} Rfd8 {[%emt 0:10:19]} 15. Nxf6+ {[%emt 0:14:15]} Nxf6 {[%emt 0:01:12]} 16. e4 {[%emt 0:01:28]} Bf8 {[%emt 0:08:45]} 17. Rd2 {[%emt 0:16:26]} Nd7 {[%emt 0:03:39]} 18. Ba3 {[%emt 0:01:14]} Nc5 {[%emt 0:00:24]} 19. Rad1 {[%emt 0:00:56]} Rab8 {[%emt 0:08:15]} 20. Bxc5 {[%emt 0:01:50]} bxc5 {[%emt 0:03:34]} 21. Qd3 {[%emt 0:00:29]} Be7 {[%emt 0:01:38]} 22. f4 {[%emt 0:07:19]} g6 {[%emt 0:00:21]} 23. Qe3 {[%emt 0:02:05]} Qc6 {[%emt 0:08:50]} 24. Qf3 {[%emt 0:02:21]} Rd7 {[%emt 0:07:26]} 25. e5 {[%emt 0:03:12]} Qxf3+ {[%emt 0:00:10]} 26. Kxf3 {[%emt 0:00:04]} Rbd8 {[%emt 0:00:10]} 27. Na4 {[%emt 0:02:50]} d5 {[%emt 0:01:44]} 28. cxd5 {[%emt 0:00:10]} Rxd5 {[%emt 0:00:27]} 29. Rxd5 {[%emt 0:00:05]} exd5 {[%emt 0:00:45]} 30. Nb6 {[%emt 0:00:27]} d4 {[%emt 0:00:56]} 31. Ke4 {[%emt 0:01:29]} f6 {[%emt 0:00:30]} 32. Nc4 {[%emt 0:03:40]} Kf7 {[%emt 0:00:29]} 33. Rc1 {[%emt 0:00:53]} Ke6 {[%emt 0:01:20]} 34. Rc2 {[%emt 0:00:19]} f5+ {[%emt 0:01:36]} 35. Kd3 {[%emt 0:00:05]} Rb8 {[%emt 0:00:13]} 36. Nb2 {[%emt 0:00:51]} Kd5 {[%emt 0:00:13]} 37. Rc4 {[%emt 0:00:32]} g5 {[%emt 0:01:06]} 38. Ra4 {[%emt 0:00:41]} Rb6 {[%emt 0:00:07]} 39. Ra5 {[%emt 0:00:29]} gxf4 {[%emt 0:01:01]} 40. gxf4 {[%emt 0:00:30]} Rh6 {[%emt 0:02:21]} 41. Na4 {[%emt 0:02:07]} Rh3+ {[%emt 0:01:54]} 42. Ke2 {[%emt 0:00:12]} Rxh2+ {[%emt 0:00:35]} 43. Kf3 {[%emt 0:00:10]} Bh4 {[%emt 0:01:50]} 44. Nc3+ {[%emt 0:07:04]} dxc3 {[%emt 0:00:23]} 45. Rxa6 {[%emt 0:00:04]} Rh3+ {[%emt 0:02:47]} 46. Kg2 {[%emt 0:00:18]} Rg3+ {[%emt 0:00:17]} 47. Kf2 {[%emt 0:00:26]} Rg6+ {[%emt 0:00:11] normal} 0-1

[Event "-chT Youth Countries 2019"]
[Site "Wuerzburg"]
[Date "2019.10.04"]
[Round "4.4"]
[White "Deuer, Marius"]
[Black "Schumann, Rabea"]
[Result "1-0"]
[ECO "A50"]
[WhiteElo "1993"]
[BlackElo "1922"]
[Annotator "NA"]
[PlyCount "77"]
[EventDate "2019.10.02"]
[EventType "team-tourn"]
[EventRounds "7"]
[EventCountry "GER"]
[SourceTitle "playchess.com"]
[Source "ChessBase"]
[SourceQuality "1"]
[WhiteTeam "Württemberg"]
[BlackTeam "Mecklenburg-Vorpommern"]
[TimeControl "40/5400+30:1800+30"]

1. d4 {[%emt 0:00:00]} Nf6 {[%emt 0:00:00]} 2. c4 {[%emt 0:00:00]} g6 {[%emt 0:00:03]} 3. f3 {[%emt 0:00:00]} c5 {[%emt 0:06:14]} 4. d5 {[%emt 0:04:18]} b5 {[%emt 0:05:22]} 5. e4 {[%emt 0:02:04]} d6 6. cxb5 a6 {[%emt 0:06:51]} 7. Nc3 {[%emt 0:04:19]} Bg7 {[%emt 0:02:59]} 8. Be3 {[%emt 0:01:30]} O-O {[%emt 0:16:12]} 9. a4 Qa5 10. Ra3 {[%emt 0:06:22]} Nbd7 {[%emt 0:05:04]} 11. Nh3 {[%emt 0:03:36]} Ne5 {[%emt 0:08:48]} 12. Nf2 {[%emt 0:01:24]} Bb7 {[%emt 0:13:24]} 13. f4 {[%emt 0:05:46]} Ned7 {[%emt 0:01:12]} 14. Bd3 {[%emt 0:02:09]} axb5 {[%emt 0:07:44]} 15. axb5 {[%emt 0:01:52]} Qb4 {[%emt 0:01:02]} 16. Rb3 {[%emt 0:04:49]} Qa5 {[%emt 0:00:31]} 17. O-O {[%emt 0:05:30]} Rfc8 {[%emt 0:00:38]} 18. Bc2 {[%emt 0:05:35]} Qc7 {[%emt 0:04:30]} 19. g4 {[%emt 0:09:19]} Nb6 {[%emt 0:00:42]} 20. g5 {[%emt 0:07:42]} Nfd7 {[%emt 0:08:40]} 21. Ne2 {[%emt 0:06:58]} Nc4 {[%emt 0:00:27]} 22. Bc1 {[%emt 0:04:48]} Ndb6 {[%emt 0:02:51]} 23. Rh3 {[%emt 0:02:53]} Qd7 24. Nc3 Bd4 {[%emt 0:03:24]} 25. Kg2 {[%emt 0:02:40]} e6 {[%emt 0:03:10]} 26. Qg4 {[%emt 0:11:36]} exd5 {[%emt 0:00:52]} 27. Qh4 {[%emt 0:00:30]} f6 {[%emt 0:01:46]} 28. gxf6 {[%emt 0:02:27]} Bxf2 {[%emt 0:00:09]} 29. Rxf2 {[%emt 0:01:18]} dxe4 {[%emt 0:00:37]} 30. Bxe4 {[%emt 0:00:23]} Bxe4+ {[%emt 0:00:51]} 31. Nxe4 {[%emt 0:03:17]} Rf8 {[%emt 0:00:34]} 32. Ng5 {[%emt 0:00:42]} Rxf6 {[%emt 0:00:38]} 33. Nxh7 {[%emt 0:00:32]} Rf7 {[%emt 0:00:06]} 34. Nf6+ {[%emt 0:00:10]} Rxf6 {[%emt 0:00:48]} 35. Qxf6 {[%emt 0:01:03]} Qb7+ {[%emt 0:00:25]} 36. Kg3 {[%emt 0:00:37]} Qg7 {[%emt 0:00:15]} 37. Qe6+ {[%emt 0:01:23]} Kf8 {[%emt 0:00:29]} 38. b3 {[%emt 0:00:10]} Ra3 39. Bxa3 {normal} 1-0

[Event "-chT Youth Countries 2019"]
[Site "Wuerzburg"]
[Date "2019.10.04"]
[Round "4.4"]
[White "Danninger, Jannik"]
[Black "Eilenberg, Jonas"]
[Result "0-1"]
[ECO "B33"]
[WhiteElo "1990"]
[BlackElo "2050"]
[Annotator "NA"]
[PlyCount "95"]
[EventDate "2019.10.02"]
[EventType "team-tourn"]
[EventRounds "7"]
[EventCountry "GER"]
[SourceTitle "playchess.com"]
[Source "ChessBase"]
[SourceQuality "1"]
[WhiteTeam "Bayern 2"]
[BlackTeam "Berlin"]
[TimeControl "40/5400+30:1800+30"]

1. e4 {[%emt 0:00:00]} c5 {[%emt 0:00:00]} 2. Nf3 {[%emt 0:00:00]} Nc6 {[%emt 0:00:00]} 3. d4 {[%emt 0:00:00]} cxd4 {[%emt 0:00:00]} 4. Nxd4 {[%emt 0:00:06]} Nf6 {[%emt 0:00:00]} 5. Nc3 {[%emt 0:00:23]} e5 {[%emt 0:00:00]} 6. Ndb5 {[%emt 0:00:18]} d6 {[%emt 0:00:07]} 7. Bg5 {[%emt 0:01:16]} a6 {[%emt 0:00:04]} 8. Na3 {[%emt 0:00:17]} b5 {[%emt 0:00:01]} 9. Bxf6 {[%emt 0:00:45]} gxf6 {[%emt 0:00:09]} 10. Nd5 {[%emt 0:00:08]} Bg7 {[%emt 0:00:25]} 11. Qh5 {[%emt 0:00:57]} f5 {[%emt 0:07:48]} 12. Bd3 {[%emt 0:00:13]} Be6 {[%emt 0:08:54]} 13. O-O {[%emt 0:01:02]} f4 {[%emt 0:05:00]} 14. c3 {[%emt 0:04:43]} O-O {[%emt 0:09:24]} 15. Nc2 {[%emt 0:00:51]} f5 {[%emt 0:09:40]} 16. Ne1 {[%emt 0:08:10]} Bxd5 {[%emt 0:02:45]} 17. exd5 {[%emt 0:00:11]} Ne7 {[%emt 0:00:07]} 18. Nf3 {[%emt 0:02:18]} h6 {[%emt 0:02:28]} 19. Nh4 {[%emt 0:02:10]} Qe8 {[%emt 0:03:08]} 20. Qe2 {[%emt 0:02:19]} e4 {[%emt 0:01:15]} 21. Bc2 {[%emt 0:01:26]} Bf6 {[%emt 0:03:03]} 22. Nxf5 {[%emt 0:01:55]} Nxf5 {[%emt 0:00:29]} 23. Bxe4 {[%emt 0:00:27]} Bg7 {[%emt 0:02:18]} 24. Rfe1 {[%emt 0:03:18]} Qf7 {[%emt 0:06:39]} 25. Rad1 {[%emt 0:05:35]} Rae8 {[%emt 0:02:16]} 26. Qg4 {[%emt 0:02:52]} Ne3 {[%emt 0:03:41]} 27. fxe3 {[%emt 0:04:18]} Rxe4 {[%emt 0:00:10]} 28. exf4 {[%emt 0:02:11]} Rxe1+ {[%emt 0:01:01]} 29. Rxe1 {[%emt 0:00:12]} Qxf4 {[%emt 0:00:14]} 30. Qxf4 {[%emt 0:01:21]} Rxf4 {[%emt 0:00:02]} 31. Re8+ {[%emt 0:02:11]} Kf7 {[%emt 0:00:47]} 32. Ra8 {[%emt 0:01:24]} Rf5 {[%emt 0:00:43]} 33. Ra7+ {[%emt 0:01:07]} Kf6 {[%emt 0:00:34]} 34. Rxa6 {[%emt 0:00:05]} Rxd5 {[%emt 0:00:04]} 35. Kf1 {[%emt 0:02:01]} Ke6 {[%emt 0:01:17]} 36. Ke2 {[%emt 0:00:39]} Rg5 {[%emt 0:02:15]} 37. Kf3 {[%emt 0:00:53]} Rf5+ {[%emt 0:00:22]} 38. Ke2 {[%emt 0:00:52]} Be5 {[%emt 0:00:07]} 39. h3 {[%emt 0:00:38]} Bg3 {[%emt 0:00:07]} 40. b3 {[%emt 0:02:34]} h5 {[%emt 0:01:26]} 41. a4 {[%emt 0:32:10]} bxa4 {[%emt 0:30:58]} 42. Rxa4 {[%emt 0:00:15]} h4 {[%emt 0:00:50]} 43. Re4+ {[%emt 0:01:11]} Kd5 {[%emt 0:02:35]} 44. Kd3 {[%emt 0:00:17]} Rf2 {[%emt 0:00:42]} 45. Re2 {[%emt 0:01:03]} Rxe2 {[%emt 0:00:19]} 46. Kxe2 {[%emt 0:00:06]} Ke4 {[%emt 0:00:02] normal} 47. Kd2 {[%emt 0:03:53]} Be5 {[%emt 0:01:40]} 48. b4 {[%emt 0:01:21] normal} 0-1

[Event "-chT Youth Countries 2019"]
[Site "Wuerzburg"]
[Date "2019.10.04"]
[Round "4.4"]
[White "Franke, Luca"]
[Black "Riegel, Arinna"]
[Result "1/2-1/2"]
[ECO "E06"]
[WhiteElo "1872"]
[BlackElo "1894"]
[Annotator "NA"]
[PlyCount "57"]
[EventDate "2019.10.02"]
[EventType "team-tourn"]
[EventRounds "7"]
[EventCountry "GER"]
[SourceTitle "playchess.com"]
[Source "ChessBase"]
[SourceQuality "1"]
[WhiteTeam "Team Süd"]
[BlackTeam "Baden 1"]
[TimeControl "40/5400+30:1800+30"]

1. d4 {[%emt 0:00:00]} d5 {[%emt 0:00:00]} 2. c4 {[%emt 0:00:00]} e6 {[%emt 0:00:00]} 3. Nf3 {[%emt 0:00:00]} Nf6 {[%emt 0:00:00]} 4. g3 {[%emt 0:00:00]} Be7 {[%emt 0:01:06]} 5. Bg2 {[%emt 0:00:03]} O-O {[%emt 0:00:25]} 6. O-O {[%emt 0:00:07]} b6 {[%emt 0:03:32]} 7. cxd5 {[%emt 0:00:30]} exd5 {[%emt 0:00:36]} 8. Qc2 {[%emt 0:00:48]} Bb7 {[%emt 0:05:02]} 9. Bf4 {[%emt 0:02:29]} Bd6 {[%emt 0:02:55]} 10. Be5 {[%emt 0:01:45]} h6 {[%emt 0:04:03]} 11. Nc3 {[%emt 0:02:04]} c6 {[%emt 0:06:46]} 12. Rfd1 {[%emt 0:02:30]} Qe7 {[%emt 0:04:20]} 13. Bxd6 {[%emt 0:03:55]} Qxd6 14. e4 {[%emt 0:00:15]} dxe4 {[%emt 0:02:13]} 15. Nxe4 {[%emt 0:00:31]} Nxe4 {[%emt 0:01:32]} 16. Qxe4 {[%emt 0:00:08]} Nd7 {[%emt 0:01:40]} 17. Ne5 {[%emt 0:01:06]} Rfe8 {[%emt 0:04:03]} 18. f4 {[%emt 0:00:36]} f6 {[%emt 0:31:40]} 19. Qg6 {[%emt 0:00:17]} Qe6 {[%emt 0:08:13]} 20. Nxd7 {[%emt 0:11:55]} Qxd7 {[%emt 0:00:37]} 21. Be4 {[%emt 0:00:11]} Kf8 {[%emt 0:10:24]} 22. Qh7 {[%emt 0:06:50]} Qe6 {[%emt 0:01:25]} 23. Re1 {[%emt 0:00:32]} Qg8 {[%emt 0:01:00]} 24. Qxg8+ {[%emt 0:03:30]} Kxg8 {[%emt 0:00:03]} 25. Bg6 {[%emt 0:00:13]} Rxe1+ {[%emt 0:02:27]} 26. Rxe1 {[%emt 0:00:02]} Kf8 {[%emt 0:00:02]} 27. Re6 {[%emt 0:00:33]} Rd8 {[%emt 0:01:43]} 28. Kf2 {[%emt 0:00:12]} c5 {[%emt 0:04:20]} 29. dxc5 {[%emt 0:00:07] normal} 1/2-1/2

[Event "-chT Youth Countries 2019"]
[Site "Wuerzburg"]
[Date "2019.10.04"]
[Round "4.5"]
[White "Farokhi, Keyvan"]
[Black "Haack, Kevin"]
[Result "1-0"]
[ECO "B90"]
[WhiteElo "2018"]
[BlackElo "2044"]
[Annotator "NA"]
[PlyCount "81"]
[EventDate "2019.10.02"]
[EventType "team-tourn"]
[EventRounds "7"]
[EventCountry "GER"]
[SourceTitle "playchess.com"]
[Source "ChessBase"]
[SourceQuality "1"]
[WhiteTeam "Schleswig-Holstein"]
[BlackTeam "Hessen"]
[TimeControl "40/5400+30:1800+30"]

1. e4 {[%emt 0:00:00]} c5 {[%emt 0:00:00]} 2. Nf3 {[%emt 0:00:00]} d6 {[%emt 0:00:00]} 3. d4 {[%emt 0:00:00]} cxd4 {[%emt 0:00:00]} 4. Nxd4 {[%emt 0:00:00]} Nf6 {[%emt 0:00:00]} 5. Nc3 {[%emt 0:00:00]} a6 {[%emt 0:00:00]} 6. Be3 {[%emt 0:00:39]} e6 {[%emt 0:00:03]} 7. f3 {[%emt 0:00:05]} b5 {[%emt 0:00:18]} 8. Qd2 {[%emt 0:00:05]} Nbd7 {[%emt 0:00:07]} 9. g4 {[%emt 0:00:08]} b4 {[%emt 0:00:06]} 10. Nce2 {[%emt 0:00:04]} h6 {[%emt 0:00:06]} 11. O-O-O {[%emt 0:00:05]} Qc7 {[%emt 0:00:54]} 12. h4 {[%emt 0:00:08]} d5 {[%emt 0:02:03]} 13. Bf4 {[%emt 0:00:08]} e5 {[%emt 0:09:16]} 14. Bh2 {[%emt 0:00:05]} g6 {[%emt 0:10:19]} 15. g5 {[%emt 0:18:33]} hxg5 {[%emt 0:01:58]} 16. hxg5 {[%emt 0:00:07]} Rxh2 {[%emt 0:07:21]} 17. Rxh2 {[%emt 0:00:01]} exd4 {[%emt 0:00:08]} 18. Rh8 {[%emt 0:00:13]} Nh5 {[%emt 0:01:13]} 19. Qxd4 {[%emt 0:01:49]} Bb7 {[%emt 0:02:21]} 20. exd5 {[%emt 0:01:01]} O-O-O {[%emt 0:01:36]} 21. Bh3 {[%emt 0:04:14]} Bd6 {[%emt 0:05:02]} 22. Rxd8+ {[%emt 0:01:52]} Qxd8 {[%emt 0:00:36]} 23. f4 {[%emt 0:04:39]} Kb8 {[%emt 0:02:04]} 24. Kb1 {[%emt 0:04:58]} Qe7 {[%emt 0:07:28]} 25. Bg4 {[%emt 0:06:26]} f6 {[%emt 0:31:17]} 26. Bxh5 {[%emt 0:28:45]} gxh5 {[%emt 0:00:13]} 27. Ng3 {[%emt 0:00:33]} Qf7 {[%emt 0:03:03]} 28. Nf5 {[%emt 0:01:45]} Bc5 {[%emt 0:00:32]} 29. Qe4 {[%emt 0:00:44]} Nb6 {[%emt 0:02:59]} 30. Qe6 {[%emt 0:17:10]} Bxd5 {[%emt 0:00:56]} 31. Qxf7 {[%emt 0:00:06]} Bxf7 {[%emt 0:00:04]} 32. Nh6 {[%emt 0:00:37]} Bd5 {[%emt 0:04:28]} 33. g6 {[%emt 0:01:08]} Bf8 {[%emt 0:05:10]} 34. Nf5 {[%emt 0:00:14]} h4 {[%emt 0:00:44]} 35. Nxh4 {[%emt 0:02:26]} Kc7 {[%emt 0:02:05]} 36. Nf5 {[%emt 0:00:46]} Bg8 {[%emt 0:01:48]} 37. g7 {[%emt 0:01:16]} Bc5 {[%emt 0:01:13]} 38. Nh6 {[%emt 0:00:15]} Bh7 {[%emt 0:00:17]} 39. g8=Q {[%emt 0:00:33]} Bxg8 {[%emt 0:00:04]} 40. Nxg8 {[%emt 0:00:07]} Nd7 {[%emt 0:00:57]} 41. Nh6 {[%emt 0:33:24] normal} 1-0

[Event "-chT Youth Countries 2019"]
[Site "Wuerzburg"]
[Date "2019.10.04"]
[Round "4.5"]
[White "Nguyen, Ha Thanh"]
[Black "Fuhrmann, Bahne"]
[Result "1-0"]
[ECO "C54"]
[WhiteElo "1998"]
[BlackElo "1623"]
[Annotator "NA"]
[PlyCount "61"]
[EventDate "2019.10.02"]
[EventType "team-tourn"]
[EventRounds "7"]
[EventCountry "GER"]
[SourceTitle "playchess.com"]
[Source "ChessBase"]
[SourceQuality "1"]
[WhiteTeam "Thüringen"]
[BlackTeam "Hamburg/Schleswig-Holstein"]
[TimeControl "40/5400+30:1800+30"]

1. e4 {[%emt 0:00:00]} e5 {[%emt 0:00:00]} 2. Nf3 {[%emt 0:00:00]} Nc6 {[%emt 0:00:00]} 3. Bc4 {[%emt 0:00:00]} Bc5 {[%emt 0:00:00]} 4. c3 {[%emt 0:00:00]} Nf6 {[%emt 0:00:00]} 5. d3 {[%emt 0:00:00]} O-O {[%emt 0:00:00]} 6. O-O {[%emt 0:00:05]} d5 {[%emt 0:00:07]} 7. exd5 {[%emt 0:00:08]} Nxd5 {[%emt 0:00:06]} 8. Nbd2 {[%emt 0:00:54]} Nb6 {[%emt 0:01:21]} 9. Bb5 {[%emt 0:01:41]} Bd6 {[%emt 0:01:20]} 10. Ne4 {[%emt 0:01:53]} Bg4 {[%emt 0:03:03]} 11. h3 {[%emt 0:02:48]} Bxf3 {[%emt 0:09:56]} 12. Qxf3 {[%emt 0:00:25]} f5 {[%emt 0:00:06]} 13. Ng5 {[%emt 0:16:42]} Qe8 {[%emt 0:01:28]} 14. Qd1 {[%emt 0:05:36]} h6 {[%emt 0:01:25]} 15. Nf3 {[%emt 0:02:33]} e4 {[%emt 0:02:30]} 16. Re1 {[%emt 0:03:34]} a6 {[%emt 0:29:21]} 17. Bxc6 {[%emt 0:10:36]} Qxc6 {[%emt 0:00:18]} 18. Nd4 {[%emt 0:01:26]} Qd5 {[%emt 0:00:54]} 19. dxe4 {[%emt 0:01:10]} fxe4 {[%emt 0:01:32]} 20. Qg4 {[%emt 0:00:53]} Kh8 {[%emt 0:14:57]} 21. Rxe4 {[%emt 0:03:15]} Nc4 {[%emt 0:05:13]} 22. Ne6 {[%emt 0:03:30]} Rf7 {[%emt 0:00:43]} 23. Rd4 {[%emt 0:01:42]} Qe5 {[%emt 0:04:06]} 24. Bf4 {[%emt 0:03:57]} Qb5 {[%emt 0:00:29]} 25. Qg6 {[%emt 0:06:18]} Re7 {[%emt 0:12:56]} 26. Bxh6 {[%emt 0:03:57]} Be5 {[%emt 0:06:26]} 27. Rh4 {[%emt 0:09:27]} Kg8 {[%emt 0:01:12]} 28. Bxg7 {[%emt 0:06:17]} Bxg7 {[%emt 0:01:48]} 29. Qh7+ {[%emt 0:01:14]} Kf7 {[%emt 0:00:06]} 30. Nxg7 {[%emt 0:00:16]} Qe5 {[%emt 0:01:58]} 31. Nf5+ {[%emt 0:00:48] normal} 1-0

[Event "-chT Youth Countries 2019"]
[Site "Wuerzburg"]
[Date "2019.10.04"]
[Round "4.5"]
[White "Hetzner, Hannes"]
[Black "Reitz, Theresa"]
[Result "1-0"]
[ECO "D70"]
[WhiteElo "1996"]
[BlackElo "1935"]
[Annotator "NA"]
[PlyCount "48"]
[EventDate "2019.10.02"]
[EventType "team-tourn"]
[EventRounds "7"]
[EventCountry "GER"]
[SourceTitle "playchess.com"]
[Source "ChessBase"]
[SourceQuality "1"]
[WhiteTeam "Bayern 1"]
[BlackTeam "Rheinland-Pfalz"]
[TimeControl "40/5400+30:1800+30"]

1. d4 {[%emt 0:00:00]} Nf6 {[%emt 0:00:00]} 2. c4 {[%emt 0:00:00]} g6 {[%emt 0:00:00]} 3. Nf3 {[%emt 0:00:00]} Bg7 {[%emt 0:00:05]} 4. e3 {[%emt 0:00:00]} O-O {[%emt 0:00:48]} 5. Be2 {[%emt 0:00:06]} d5 {[%emt 0:04:02]} 6. cxd5 {[%emt 0:00:11]} Nxd5 {[%emt 0:00:11]} 7. e4 {[%emt 0:00:17]} Nb4 {[%emt 0:02:06]} 8. O-O {[%emt 0:09:54]} c5 {[%emt 0:10:39]} 9. d5 {[%emt 0:05:38]} f5 {[%emt 0:04:03]} 10. Bc4 {[%emt 0:21:47]} b5 {[%emt 0:30:50]} 11. Bxb5 {[%emt 0:01:15]} fxe4 12. Ng5 {[%emt 0:03:16]} Rf5 {[%emt 0:25:19]} 13. Nc3 {[%emt 0:06:30]} e6 {[%emt 0:12:00]} 14. dxe6 {[%emt 0:11:47]} Qe7 {[%emt 0:00:13]} 15. Qa4 {[%emt 0:07:59]} h6 {[%emt 0:01:47]} 16. Ngxe4 {[%emt 0:01:10]} Bxe6 {[%emt 0:00:35]} 17. Be3 {[%emt 0:02:01]} Nd7 {[%emt 0:01:35]} 18. Nxc5 {[%emt 0:04:15]} Nxc5 {[%emt 0:00:40]} 19. Qxb4 {[%emt 0:00:08]} Qf8 {[%emt 0:01:22]} 20. Bc4 {[%emt 0:02:28]} Bxc4 21. Qxc4+ {[%emt 0:00:06]} Kh8 {[%emt 0:00:44]} 22. Bd4 {[%emt 0:02:41]} Rd8 {[%emt 0:01:01]} 23. Rad1 {[%emt 0:02:32]} Rc8 {[%emt 0:01:23]} 24. Bxg7+ {[%emt 0:04:08]} Kxg7 {[%emt 0:00:17] normal} 1-0

[Event "-chT Youth Countries 2019"]
[Site "Wuerzburg"]
[Date "2019.10.04"]
[Round "4.5"]
[White "Moenster, Madita"]
[Black "Muedder, Melanie"]
[Result "1/2-1/2"]
[ECO "B32"]
[WhiteElo "1916"]
[BlackElo "1964"]
[Annotator "NA"]
[PlyCount "83"]
[EventDate "2019.10.02"]
[EventType "team-tourn"]
[EventRounds "7"]
[EventCountry "GER"]
[SourceTitle "playchess.com"]
[Source "ChessBase"]
[SourceQuality "1"]
[WhiteTeam "Niedersachsen"]
[BlackTeam "Nordrhein-Westfalen"]
[TimeControl "40/5400+30:1800+30"]

1. e4 {[%emt 0:00:00]} c5 {[%emt 0:00:00]} 2. Nf3 {[%emt 0:00:00]} Nc6 {[%emt 0:00:00]} 3. d4 {[%emt 0:00:00]} cxd4 {[%emt 0:00:00]} 4. Nxd4 {[%emt 0:00:00]} e5 {[%emt 0:00:00]} 5. Nb5 {[%emt 0:00:00]} d6 {[%emt 0:00:05]} 6. N1c3 {[%emt 0:00:06]} a6 {[%emt 0:00:12]} 7. Na3 {[%emt 0:00:10]} Be6 {[%emt 0:00:10]} 8. Nc4 {[%emt 0:00:18]} b5 {[%emt 0:00:16]} 9. Ne3 {[%emt 0:00:22]} Nf6 {[%emt 0:00:32]} 10. g3 {[%emt 0:00:50]} g6 {[%emt 0:01:26]} 11. Bg2 {[%emt 0:01:06]} Bg7 {[%emt 0:00:59]} 12. O-O {[%emt 0:01:19]} O-O {[%emt 0:01:55]} 13. Ncd5 {[%emt 0:06:19]} Rc8 {[%emt 0:15:38]} 14. a4 {[%emt 0:09:23]} b4 {[%emt 0:08:22]} 15. Qd3 {[%emt 0:11:28]} Bxd5 {[%emt 0:23:45]} 16. exd5 {[%emt 0:10:01]} Nd4 {[%emt 0:00:26]} 17. Bd2 {[%emt 0:02:32]} a5 {[%emt 0:08:06]} 18. Rab1 {[%emt 0:13:44]} Nd7 {[%emt 0:05:50]} 19. Be1 {[%emt 0:11:21]} Nc5 {[%emt 0:10:42]} 20. Qd1 {[%emt 0:01:23]} Rb8 {[%emt 0:08:20]} 21. c3 {[%emt 0:03:20]} bxc3 {[%emt 0:00:27]} 22. Bxc3 {[%emt 0:02:52]} Ndb3 {[%emt 0:03:15]} 23. Nc4 {[%emt 0:03:46]} Qc7 {[%emt 0:02:52]} 24. Nd2 {[%emt 0:05:19]} Nxd2 {[%emt 0:02:15]} 25. Qxd2 {[%emt 0:01:55]} Nb3 {[%emt 0:00:33]} 26. Qd1 {[%emt 0:01:35]} Qc4 {[%emt 0:00:52]} 27. Re1 {[%emt 0:02:46]} Qxa4 {[%emt 0:02:08]} 28. Be4 {[%emt 0:00:48]} Qd7 {[%emt 0:00:58]} 29. Bc2 {[%emt 0:01:23]} a4 {[%emt 0:00:43]} 30. Bxb3 {[%emt 0:06:24]} axb3 {[%emt 0:01:14]} 31. Ra1 {[%emt 0:00:15]} f5 {[%emt 0:00:51]} 32. Ra3 {[%emt 0:03:07]} Qb5 {[%emt 0:01:04]} 33. Ra5 {[%emt 0:01:05]} Qc4 {[%emt 0:00:27]} 34. Qf3 {[%emt 0:01:06]} e4 {[%emt 0:01:34]} 35. Qe3 {[%emt 0:00:18]} Bxc3 {[%emt 0:00:20]} 36. Rc1 {[%emt 0:00:57]} Qd4 {[%emt 0:01:05]} 37. Qxc3 {[%emt 0:00:26]} Qxc3 {[%emt 0:00:22]} 38. Rxc3 {[%emt 0:00:05]} Rfc8 {[%emt 0:00:33]} 39. Rxc8+ {[%emt 0:01:04]} Rxc8 {[%emt 0:00:05]} 40. Rb5 {[%emt 0:00:10]} Rc5 {[%emt 0:01:01]} 41. Rxb3 {[%emt 0:01:14]} Rxd5 {[%emt 0:00:51]} 42. Kf1 {[%emt 0:01:33] normal} 1/2-1/2